lending/lending_fUSD_20240112
["ID","MTS","AMOUNT","RATE_DAILY","PERIOD"]
[311357261,1705067477954,-500.0,0.00023682,2]
[311357262,1705067477963,-615.74,0.00023682,2]
[311357263,1705067477972,-500.0,0.00023682,2]
[311357264,1705067477981,-549.71,0.00023682,2]
[311357265,1705067477990,-533.96,0.00023682,2]
[311357266,1705067477999,-565.02371115,0.00023682,2]
[311357267,1705067478008,-545.26,0.00023682,2]
[311357268,1705067478018,-500.0,0.00023682,2]
[311357269,1705067478028,-500.0,0.00023682,2]
[311357270,1705067478037,-500.0,0.00023682,2]
[311357271,1705067478046,-500.0,0.00023682,2]
[311357272,1705067478055,-526.4,0.00023682,2]
[311357273,1705067478065,-753.76,0.00023682,2]
[311357274,1705067478074,-500.0,0.00023682,2]
[311357275,1705067478083,-454.8,0.00023682,2]
[311357276,1705067478091,-500.0,0.00023682,2]
[311357277,1705067478100,-500.0,0.00023682,2]
[311357278,1705067478110,-500.0,0.00023682,2]
[311357279,1705067478119,-568.06,0.00023682,2]
[311357280,1705067478132,-183.90414459,0.00023682,2]
[311357281,1705067478141,-500.0,0.00023682,2]
[311357282,1705067478151,-500.0,0.00023682,2]
[311357283,1705067478160,-500.0,0.00023682,2]
[311357284,1705067478171,-500.0,0.00023682,2]
[311357285,1705067478181,-806.29,0.00023682,2]
[311357286,1705067478191,-500.0,0.00023682,2]
[311357287,1705067478201,-500.0,0.00023682,2]
[311357288,1705067478211,-500.0,0.00023682,2]
[311357289,1705067478221,-500.0,0.00023682,2]
[311357290,1705067478232,-500.0,0.00023682,2]
[311357291,1705067478241,-500.0,0.00023682,2]
[311357292,1705067478251,-222.21,0.00023682,2]
[311357293,1705067478261,-500.0,0.00023682,2]
[311357294,1705067478271,-848.08,0.00023682,2]
[311357295,1705067478282,-977.29,0.00023682,2]
[311357296,1705067478291,-500.0,0.00023682,2]
[311357297,1705067478301,-500.0,0.00023682,2]
[311357298,1705067478311,-500.0,0.00023682,2]
[311357299,1705067478321,-500.0,0.00023682,2]
[311357300,1705067478330,-500.0,0.00023682,2]
[311357301,1705067478340,-516.56,0.00023682,2]
[311357302,1705067478349,-500.0,0.00023682,2]
[311357303,1705067478359,-300.0,0.00023682,2]
[311357304,1705067478368,-500.0,0.00023682,2]
[311357305,1705067478378,-478.58026165,0.00023682,2]
[311357306,1705067478388,-500.0,0.00023682,2]
[311357307,1705067478397,-764.31,0.00023682,2]
[311357308,1705067478406,-555.48,0.00023682,2]
[311357309,1705067478416,-500.0,0.00023682,2]
[311357310,1705067478426,-500.0,0.00023682,2]
[311357311,1705067478435,-500.0,0.00023682,2]
[311357312,1705067478446,-675.05,0.00023682,2]
[311357313,1705067478456,-500.0,0.00023682,2]
[311357314,1705067478466,-500.0,0.00023682,2]
[311357315,1705067478475,-500.0,0.00023682,2]
[311357316,1705067478484,-500.0,0.00023682,2]
[311357317,1705067478494,-500.0,0.00023682,2]
[311357318,1705067478503,-378.37556676,0.00023682,2]
[311357319,1705067478513,-500.0,0.00023682,2]
[311357320,1705067478522,-696.67,0.00023682,2]
[311357321,1705067478533,-500.0,0.00023682,2]
[311357322,1705067478543,-549.27,0.00023682,2]
[311357323,1705067478552,-537.5,0.00023682,2]
[311357324,1705067478562,-794.27,0.00023682,2]
[311357325,1705067478571,-500.0,0.00023682,2]
[311357326,1705067478582,-1478.94,0.00023682,2]
[311357327,1705067478591,-2259.65,0.00023682,2]
[311357328,1705067478601,-592.72,0.00023682,2]
[311357329,1705067478610,-500.0,0.00023682,2]
[311357330,1705067478620,-500.0,0.00023682,2]
[311357331,1705067478629,-508.59,0.00023682,2]
[311357332,1705067478638,-500.0,0.00023682,2]
[311357333,1705067478647,-500.0,0.00023682,2]
[311357334,1705067478657,-1082.32,0.00023682,2]
[311357335,1705067478666,-5818.98,0.00023682,2]
[311357336,1705067478675,-613.36,0.00023682,2]
[311357337,1705067478684,-500.0,0.00023682,2]
[311357338,1705067478694,-500.0,0.00023682,2]
[311357339,1705067478703,-500.0,0.00023682,2]
[311357340,1705067478712,-500.0,0.00023682,2]
[311357341,1705067478721,-500.0,0.00023682,2]
[311357342,1705067478731,-500.0,0.00023682,2]
[311357343,1705067478740,-560.75,0.00023682,2]
[311357344,1705067478749,-500.0,0.00023682,2]
[311357345,1705067478759,-501.17,0.00023682,2]
[311357346,1705067478768,-500.0,0.00023682,2]
[311357347,1705067478778,-941.07,0.00023682,2]
[311357348,1705067478787,-568.7,0.00023682,2]
[311357349,1705067478796,-500.0,0.00023682,2]
[311357350,1705067478806,-500.0,0.00023682,2]
[311357351,1705067478815,-610.82,0.00023682,2]
[311357352,1705067478826,-2025.81,0.00023682,2]
[311357353,1705067478835,-627.28,0.00023682,2]
[311357354,1705067478845,-793.23,0.00023682,2]
[311357355,1705067478855,-500.0,0.00023682,2]
[311357356,1705067478864,-500.0,0.00023682,2]
[311357357,1705067478874,-500.0,0.00023682,2]
[311357358,1705067478884,-500.0,0.00023682,2]
[311357359,1705067478893,-500.0,0.00023682,2]
[311357360,1705067478902,-500.0,0.00023682,2]
[311357361,1705067478912,-500.0,0.00023682,2]
[311357362,1705067478921,-500.0,0.00023682,2]
[311357363,1705067478930,-1268.72,0.00023682,2]
[311357364,1705067478940,-500.0,0.00023682,2]
[311357365,1705067478949,-3058.91,0.00023682,2]
[311357366,1705067478958,-500.0,0.00023682,2]
[311357367,1705067478968,-645.36,0.00023682,2]
[311357368,1705067478978,-500.0,0.00023682,2]
[311357369,1705067478989,-500.0,0.00023682,2]
[311357370,1705067478998,-594.49,0.00023682,2]
[311357371,1705067479008,-500.0,0.00023682,2]
[311357372,1705067479017,-500.0,0.00023682,2]
[311357373,1705067479028,-523.76,0.00023682,2]
[311357374,1705067479038,-967.54,0.00023682,2]
[311357375,1705067479047,-500.0,0.00023682,2]
[311357376,1705067479057,-698.09,0.00023682,2]
[311357377,1705067479067,-500.0,0.00023682,2]
[311357378,1705067479076,-1774.52,0.00023682,2]
[311357379,1705067479086,-500.0,0.00023682,2]
[311357380,1705067479095,-500.0,0.00023682,2]
[311357381,1705067479105,-672.72,0.00023682,2]
[311357382,1705067479115,-1366.67,0.00023682,2]
[311357383,1705067479125,-640.24,0.00023682,2]
[311357384,1705067479135,-650.29,0.00023682,2]
[311357385,1705067479145,-1109.5,0.00023682,2]
[311357386,1705067479157,-653.12,0.00023682,2]
[311357387,1705067479169,-500.0,0.00023682,2]
[311357388,1705067479179,-2402.79,0.00023682,2]
[311357389,1705067479189,-500.0,0.00023682,2]
[311357390,1705067479199,-500.0,0.00023682,2]
[311357391,1705067479209,-500.0,0.00023682,2]
[311357392,1705067479219,-682.08,0.00023682,2]
[311357393,1705067479229,-2173.55,0.00023682,2]
[311357394,1705067479239,-604.31,0.00023682,2]
[311357395,1705067479248,-500.0,0.00023682,2]
[311357396,1705067479257,-1581.39,0.00023682,2]
[311357397,1705067479269,-500.0,0.00023682,2]
[311357398,1705067479279,-500.0,0.00023682,2]
[311357399,1705067479290,-1124.99,0.00023682,2]
[311357400,1705067479299,-500.0,0.00023682,2]
[311357401,1705067479309,-500.0,0.00023682,2]
[311357402,1705067479319,-619.21,0.00023682,2]
[311357403,1705067479328,-500.0,0.00023682,2]
[311357404,1705067479338,-500.0,0.00023682,2]
[311357405,1705067479347,-1172.6,0.00023682,2]
[311357406,1705067479357,-360.56240135,0.00023682,2]
[311357407,1705067479367,-500.0,0.00023682,2]
[311357408,1705067479378,-613.44,0.00023682,2]
[311357409,1705067479387,-843.5,0.00023682,2]
[311357410,1705067479396,-500.0,0.00023682,2]
[311357411,1705067479406,-752.62,0.00023682,2]
[311357412,1705067479416,-500.0,0.00023682,2]
[311357413,1705067479425,-500.0,0.00023682,2]
[311357414,1705067479434,-1338.76,0.00023682,2]
[311357415,1705067479444,-570.42,0.00023682,2]
[311357416,1705067479454,-500.0,0.00023682,2]
[311357417,1705067479464,-506.47,0.00023682,2]
[311357418,1705067479474,-504.37363898,0.00023682,2]
[311357419,1705067479483,-2558.46,0.00023682,2]
[311357420,1705067479493,-500.0,0.00023682,2]
[311357421,1705067479503,-500.0,0.00023682,2]
[311357422,1705067479512,-778.89,0.00023682,2]
[311357423,1705067479522,-500.0,0.00023682,2]
[311357424,1705067479534,-608.12,0.00023682,2]
[311357425,1705067479544,-761.66,0.00023682,2]
[311357426,1705067479554,-500.0,0.00023682,2]
[311357427,1705067479563,-500.0,0.00023682,2]
[311357428,1705067479573,-500.0,0.00023682,2]
[311357429,1705067479583,-606.09,0.00023682,2]
[311357430,1705067479592,-2321.31,0.00023682,2]
[311357431,1705067479602,-503.85,0.00023682,2]
[311357432,1705067479611,-792.73,0.00023682,2]
[311357433,1705067479620,-505.57,0.00023682,2]
[311357434,1705067479630,-986.73,0.00023682,2]
[311357435,1705067479639,-500.0,0.00023682,2]
[311357436,1705067479649,-500.0,0.00023682,2]
[311357437,1705067479658,-1855.62,0.00023682,2]
[311357438,1705067479668,-500.0,0.00023682,2]
[311357439,1705067479677,-500.0,0.00023682,2]
[311357440,1705067479687,-544.3,0.00023682,2]
[311357441,1705067479696,-500.0,0.00023682,2]
[311357442,1705067479706,-922.23,0.00023682,2]
[311357443,1705067479715,-500.0,0.00023682,2]
[311357444,1705067479725,-855.09,0.00023682,2]
[311357445,1705067479734,-1739.46,0.00023682,2]
[311357446,1705067479743,-539.44,0.00023682,2]
[311357447,1705067479752,-500.0,0.00023682,2]
[311357448,1705067479762,-500.0,0.00023682,2]
[311357449,1705067479772,-628.22,0.00023682,2]
[311357450,1705067479783,-500.0,0.00023682,2]
[311357451,1705067479792,-564.76,0.00023682,2]
[311357452,1705067479802,-500.0,0.00023682,2]
[311357453,1705067479811,-500.0,0.00023682,2]
[311357454,1705067479821,-500.0,0.00023682,2]
[311357455,1705067479830,-500.0,0.00023682,2]
[311357456,1705067479839,-500.0,0.00023682,2]
[311357457,1705067479848,-5795.35,0.00023682,2]
[311357458,1705067479857,-500.0,0.00023682,2]
[311357459,1705067479868,-500.0,0.00023682,2]
[311357460,1705067479877,-500.0,0.00023682,2]
[311357461,1705067479887,-500.0,0.00023682,2]
[311357462,1705067479896,-518.54,0.00023682,2]
[311357463,1705067479906,-577.35,0.00023682,2]
[311357464,1705067479915,-500.0,0.00023683,2]
[311357465,1705067479925,-506.82,0.00023683,2]
[311357466,1705067479934,-898.46,0.00023683,2]
[311357467,1705067479943,-689.65,0.00023683,2]
[311357468,1705067479953,-689.5,0.00023683,2]
[311357469,1705067479962,-544.38,0.00023683,2]
[311357470,1705067479972,-517.93,0.00023683,2]
[311357471,1705067479981,-500.0,0.00023683,2]
[311357472,1705067479990,-500.0,0.00023683,2]
[311357473,1705067479999,-603.88,0.00023683,2]
[311357474,1705067480009,-500.0,0.00023683,2]
[311357475,1705067480019,-807.14,0.00023683,2]
[311357476,1705067480030,-500.0,0.00023683,2]
[311357477,1705067480040,-763.57,0.00023683,2]
[311357478,1705067480050,-500.0,0.00023683,2]
[311357479,1705067480059,-500.0,0.00023683,2]
[311357480,1705067480069,-500.0,0.00023683,2]
[311357481,1705067480079,-881.83,0.00023683,2]
[311357482,1705067480088,-500.0,0.00023683,2]
[311357483,1705067480098,-500.0,0.00023683,2]
[311357484,1705067480108,-547.66,0.00023683,2]
[311357485,1705067480117,-717.02,0.00023683,2]
[311357486,1705067480128,-500.0,0.00023683,2]
[311357487,1705067480138,-500.0,0.00023683,2]
[311357488,1705067480147,-588.39,0.00023683,2]
[311357489,1705067480161,-500.0,0.00023685,2]
[311357490,1705067480171,-500.0,0.00023685,2]
[311357491,1705067480180,-500.0,0.00023685,2]
[311357492,1705067480190,-500.0,0.00023685,2]
[311357493,1705067480200,-500.0,0.00023685,2]
[311357494,1705067480210,-500.0,0.00023685,2]
[311357495,1705067480220,-500.0,0.00023685,2]
[311357496,1705067480230,-500.0,0.00023685,2]
[311357497,1705067480240,-500.0,0.00023685,2]
[311357498,1705067480251,-500.0,0.00023685,2]
[311357499,1705067480261,-500.0,0.00023685,2]
[311357500,1705067480271,-500.0,0.00023685,2]
[311357501,1705067480283,-500.0,0.00023685,2]
[311357502,1705067480294,-500.0,0.00023685,2]
[311357503,1705067480304,-500.0,0.00023685,2]
[311357504,1705067480315,-500.0,0.00023685,2]
[311357505,1705067480326,-500.0,0.00023685,2]
[311357506,1705067480336,-500.0,0.00023685,2]
[311357507,1705067480347,-521.04430378,0.00023685,2]
[311357508,1705067480358,-500.0,0.00023685,2]
[311357509,1705067480368,-385.36,0.00023685,2]
[311357510,1705067480378,-500.0,0.00023685,2]
[311357511,1705067480389,-500.0,0.00023685,2]
[311357512,1705067480399,-500.0,0.00023685,2]
[311357513,1705067480410,-500.0,0.00023685,2]
[311357514,1705067480421,-500.0,0.00023685,2]
[311357515,1705067480431,-476.69042995,0.00023685,2]
[311357516,1705067480442,-500.0,0.00023685,2]
[311357517,1705067480453,-500.0,0.00023685,2]
[311357518,1705067480463,-500.0,0.00023685,2]
[311357519,1705067480474,-2000.0,0.00023879,2]
[311357520,1705067480484,-200.0,0.00023879,2]
[311357521,1705067480494,-2000.0,0.00023879,2]
[311357522,1705067480504,-200.0,0.00023879,2]
[311357523,1705067480515,-200.0,0.00023879,2]
[311357524,1705067480526,-200.0,0.00023879,2]
[311357525,1705067480541,-771.85,0.00023954,2]
[311357526,1705067480552,-500.0,0.00023955,2]
[311357527,1705067480563,-500.0,0.00023955,2]
[311357528,1705067480573,-500.0,0.00023955,2]
[311357529,1705067480583,-500.0,0.00023955,2]
[311357530,1705067480593,-500.0,0.00023955,2]
[311357531,1705067480603,-500.0,0.00023955,2]
[311357532,1705067480613,-500.0,0.00023955,2]
[311357533,1705067480624,-500.0,0.00023955,2]
[311357534,1705067480634,-500.0,0.00023955,2]
[311357535,1705067480645,-500.0,0.00023955,2]
[311357536,1705067480655,-500.0,0.00023955,2]
[311357537,1705067480665,-500.0,0.00023955,2]
[311357538,1705067480674,-500.0,0.00023955,2]
[311357539,1705067480685,-500.0,0.00023955,2]
[311357540,1705067480696,-500.0,0.00023955,2]
[311357541,1705067480706,-500.0,0.00023955,2]
[311357542,1705067480717,-500.0,0.00023955,2]
[311357543,1705067480727,-500.0,0.00023955,2]
[311357544,1705067480737,-500.0,0.00023955,2]
[311357545,1705067480747,-505.4,0.00023955,2]
[311357546,1705067480758,-500.0,0.00023955,2]
[311357547,1705067480768,-500.0,0.00023955,2]
[311357548,1705067480781,-500.0,0.00023955,2]
[311357549,1705067480792,-1250.65,0.00023955,2]
[311357550,1705067480802,-500.0,0.00023955,2]
[311357551,1705067480812,-500.0,0.00023955,2]
[311357552,1705067480823,-7981.48,0.00023955,2]
[311357553,1705067480833,-500.0,0.00023955,2]
[311357554,1705067480843,-535.31,0.00023955,2]
[311357555,1705067480854,-1261.36,0.00023955,2]
[311357556,1705067480866,-8984.16,0.00023955,2]
[311357557,1705067480876,-1671.94,0.00023955,2]
[311357558,1705067480886,-390.5042484,0.00023955,2]
[311357559,1705067480896,-3195.18,0.00023955,2]
[311357560,1705067480906,-500.0,0.00023955,2]
[311357561,1705067480917,-12299.66,0.00023955,2]
[311357562,1705067480927,-1110.57,0.00023955,2]
[311357563,1705067480937,-630.64,0.00023955,2]
[311357564,1705067480948,-500.0,0.00023955,2]
[311357565,1705067480958,-3123.71,0.00023955,2]
[311357566,1705067480968,-500.0,0.00023955,2]
[311357567,1705067480979,-500.0,0.00023955,2]
[311357568,1705067480989,-882.43,0.00023955,2]
[311357569,1705067481000,-2779.34,0.00023955,2]
[311357570,1705067481011,-500.0,0.00023955,2]
[311357571,1705067481021,-941.84,0.00023955,2]
[311357572,1705067481032,-703.36,0.00023955,2]
[311357573,1705067481043,-500.0,0.00023955,2]
[311357574,1705067481053,-580.21,0.00023955,2]
[311357575,1705067481063,-312.8,0.00023955,2]
[311357576,1705067481074,-500.0,0.00023955,2]
[311357577,1705067481084,-22278.0,0.00023955,2]
[311357578,1705067481095,-500.0,0.00023955,2]
[311357579,1705067481105,-2697.74,0.00023955,2]
[311357580,1705067481116,-2896.08,0.00023955,2]
[311357581,1705067481128,-1033.16,0.00023955,2]
[311357582,1705067481138,-500.0,0.00023955,2]
[311357583,1705067481148,-1299.72,0.00023955,2]
[311357584,1705067481161,-1239.07,0.00023955,2]
[311357585,1705067481172,-994.29,0.00023955,2]
[311357586,1705067481182,-2369.38,0.00023955,2]
[311357587,1705067481192,-500.0,0.00023955,2]
[311357588,1705067481204,-500.0,0.00023955,2]
[311357589,1705067481215,-508.66,0.00023955,2]
[311357590,1705067481226,-500.0,0.00023955,2]
[311357591,1705067481237,-500.0,0.00023955,2]
[311357592,1705067481247,-500.0,0.00023955,2]
[311357593,1705067481258,-500.0,0.00023955,2]
[311357594,1705067481269,-500.0,0.00023955,2]
[311357595,1705067481282,-6520.81,0.00023955,2]
[311357596,1705067481293,-533.64868471,0.00023955,2]
[311357597,1705067481303,-1237.49,0.00023955,2]
[311357598,1705067481314,-720.97,0.00023955,2]
[311357599,1705067481324,-4021.3,0.00023955,2]
[311357600,1705067481334,-500.0,0.00023955,2]
[311357601,1705067481345,-500.0,0.00023955,2]
[311357602,1705067481355,-1358.89,0.00023955,2]
[311357603,1705067481366,-2605.83,0.00023955,2]
[311357604,1705067481377,-556.6,0.00023955,2]
[311357605,1705067481388,-1356.18,0.00023955,2]
[311357606,1705067481398,-500.0,0.00023955,2]
[311357607,1705067481409,-500.0,0.00023955,2]
[311357608,1705067481420,-500.0,0.00023955,2]
[311357609,1705067481430,-519.89,0.00023955,2]
[311357610,1705067481441,-2784.68,0.00023955,2]
[311357611,1705067481451,-709.85,0.00023955,2]
[311357612,1705067481462,-500.0,0.00023955,2]
[311357613,1705067481472,-500.0,0.00023955,2]
[311357614,1705067481483,-500.0,0.00023955,2]
[311357615,1705067481493,-974.42,0.00023955,2]
[311357616,1705067481504,-2294.01,0.00023955,2]
[311357617,1705067481514,-500.0,0.00023955,2]
[311357618,1705067481525,-500.0,0.00023955,2]
[311357619,1705067481538,-1586.88,0.00023955,2]
[311357620,1705067481548,-1607.34,0.00023955,2]
[311357621,1705067481560,-318.66,0.00023955,2]
[311357622,1705067481570,-1000.0,0.00023955,2]
[311357623,1705067481580,-500.0,0.00023955,2]
[311357624,1705067481590,-892.72,0.00023955,2]
[311357625,1705067481601,-1286.7,0.00023955,2]
[311357626,1705067481612,-500.0,0.00023955,2]
[311357627,1705067481623,-500.0,0.00023955,2]
[311357628,1705067481633,-500.0,0.00023955,2]
[311357629,1705067481643,-500.0,0.00023955,2]
[311357630,1705067481654,-563.27,0.00023955,2]
[311357631,1705067481664,-500.0,0.00023955,2]
[311357632,1705067481675,-500.0,0.00023955,2]
[311357633,1705067481686,-500.0,0.00023955,2]
[311357634,1705067481696,-834.9,0.00023955,2]
[311357635,1705067481706,-1002.65,0.00023955,2]
[311357636,1705067481716,-500.0,0.00023955,2]
[311357637,1705067481726,-500.0,0.00023955,2]
[311357638,1705067481737,-13676.69,0.00023955,2]
[311357639,1705067481750,-1317.28,0.00023955,2]
[311357640,1705067481760,-500.0,0.00023955,2]
[311357641,1705067481771,-500.0,0.00023955,2]
[311357642,1705067481784,-500.0,0.00023955,2]
[311357643,1705067481795,-500.0,0.00023955,2]
[311357644,1705067481805,-771.85,0.00023955,2]
[311357645,1705067481816,-542.34,0.00023955,2]
[311357646,1705067481827,-1642.76,0.00023955,2]
[311357647,1705067481838,-601.82,0.00023955,2]
[311357648,1705067481849,-500.0,0.00023955,2]
[311357649,1705067481859,-500.0,0.00023955,2]
[311357650,1705067481869,-5698.97,0.00023955,2]
[311357651,1705067481879,-1051.05,0.00023955,2]
[311357652,1705067481890,-577.98,0.00023955,2]
[311357653,1705067481900,-852.82,0.00023955,2]
[311357654,1705067481912,-697.59,0.00023955,2]
[311357655,1705067481922,-1233.03,0.00023955,2]
[311357656,1705067481932,-500.0,0.00023955,2]
[311357657,1705067481944,-500.0,0.00023955,2]
[311357658,1705067481954,-500.0,0.00023955,2]
[311357659,1705067481965,-2538.76,0.00023955,2]
[311357660,1705067481977,-1405.14,0.00023955,2]
[311357661,1705067481988,-673.52,0.00023955,2]
[311357662,1705067481999,-2213.37,0.00023955,2]
[311357663,1705067482009,-500.0,0.00023955,2]
[311357664,1705067482020,-500.0,0.00023955,2]
[311357665,1705067482031,-14904.63,0.00023955,2]
[311357666,1705067482042,-1129.13,0.00023955,2]
[311357667,1705067482052,-1026.68,0.00023955,2]
[311357668,1705067482062,-500.0,0.00023955,2]
[311357669,1705067482073,-3836.53,0.00023955,2]
[311357670,1705067482083,-848.03,0.00023955,2]
[311357671,1705067482092,-500.0,0.00023955,2]
[311357672,1705067482103,-500.0,0.00023955,2]
[311357673,1705067482113,-717.68,0.00023955,2]
[311357674,1705067482126,-1579.12,0.00023955,2]
[311357675,1705067482142,-500.0,0.00023955,2]
[311357676,1705067482152,-500.0,0.00023955,2]
[311357677,1705067482163,-500.0,0.00023955,2]
[311357678,1705067482175,-500.0,0.00023955,2]
[311357679,1705067482186,-1016.89,0.00023955,2]
[311357680,1705067482196,-1273.06,0.00023955,2]
[311357681,1705067482207,-500.0,0.00023955,2]
[311357682,1705067482218,-1990.06,0.00023955,2]
[311357683,1705067482229,-500.0,0.00023955,2]
[311357684,1705067482240,-500.0,0.00023955,2]
[311357685,1705067482251,-642.71,0.00023955,2]
[311357686,1705067482262,-1962.61,0.00023955,2]
[311357687,1705067482273,-3858.89,0.00023955,2]
[311357688,1705067482285,-1731.39,0.00023955,2]
[311357689,1705067482295,-830.92,0.00023955,2]
[311357690,1705067482305,-1448.83,0.00023955,2]
[311357691,1705067482317,-500.0,0.00023955,2]
[311357692,1705067482327,-500.0,0.00023955,2]
[311357693,1705067482338,-899.04,0.00023955,2]
[311357694,1705067482348,-673.69,0.00023955,2]
[311357695,1705067482359,-500.0,0.00023955,2]
[311357696,1705067482369,-699.58,0.00023955,2]
[311357697,1705067482378,-2683.93,0.00023955,2]
[311357698,1705067482388,-2940.73,0.00023955,2]
[311357699,1705067482399,-4923.06,0.00023955,2]
[311357700,1705067482408,-500.0,0.00023955,2]
[311357701,1705067482419,-500.0,0.00023955,2]
[311357702,1705067482429,-660.73,0.00023955,2]
[311357703,1705067482438,-1814.82,0.00023955,2]
[311357704,1705067482449,-500.0,0.00023955,2]
[311357705,1705067482459,-1795.65,0.00023955,2]
[311357706,1705067482470,-500.0,0.00023955,2]
[311357707,1705067482480,-500.0,0.00023955,2]
[311357708,1705067482489,-500.0,0.00023955,2]
[311357709,1705067482499,-500.0,0.00023955,2]
[311357710,1705067482509,-788.12,0.00023955,2]
[311357711,1705067482520,-2878.51,0.00023955,2]
[311357712,1705067482531,-1029.85,0.00023955,2]
[311357713,1705067482783,-500.0,0.00023956,2]
[311357714,1705067482801,-500.0,0.00023956,2]
[311357715,1705067482811,-500.0,0.00023956,2]
[311357716,1705067482821,-500.0,0.00023956,2]
[311357717,1705067482830,-500.0,0.00023956,2]
[311357718,1705067482839,-500.0,0.00023956,2]
[311357719,1705067482849,-500.0,0.00023956,2]
[311357720,1705067482858,-319.62,0.00023956,2]
[311357721,1705067482868,-500.0,0.00023956,2]
[311357722,1705067482877,-500.0,0.00023956,2]
[311357723,1705067482886,-500.0,0.00023956,2]
[311357724,1705067482896,-500.0,0.00023956,2]
[311357725,1705067482905,-500.0,0.00023956,2]
[311357726,1705067482915,-500.0,0.00023956,2]
[311357727,1705067482925,-500.0,0.00023956,2]
[311357728,1705067482935,-500.0,0.00023956,2]
[311357729,1705067482945,-500.0,0.00023956,2]
[311357730,1705067482955,-229.84,0.00023956,2]
[311357731,1705067482966,-500.0,0.00023956,2]
[311357732,1705067482976,-477.06642295,0.00023956,2]
[311357733,1705067482985,-500.0,0.00023956,2]
[311357734,1705067482995,-500.0,0.00023956,2]
[311357735,1705067483005,-522.48,0.00023956,2]
[311357736,1705067483015,-500.0,0.00023956,2]
[311357737,1705067483025,-500.0,0.00023956,2]
[311357738,1705067483034,-500.0,0.00023956,2]
[311357739,1705067483044,-398.23,0.00023956,2]
[311357740,1705067483054,-500.0,0.00023956,2]
[311357741,1705067483064,-500.0,0.00023956,2]
[311357742,1705067483074,-500.0,0.00023956,2]
[311357743,1705067483083,-213.01,0.00023956,2]
[311357744,1705067483093,-500.0,0.00023956,2]
[311357745,1705067483102,-469.21,0.00023956,2]
[311357746,1705067483112,-500.0,0.00023956,2]
[311357747,1705067483121,-500.0,0.00023956,2]
[311357748,1705067483131,-500.0,0.00023956,2]
[311357749,1705067483144,-500.0,0.00023956,2]
[311357750,1705067483154,-500.0,0.00023956,2]
[311357751,1705067483163,-500.0,0.00023956,2]
[311357752,1705067483173,-500.0,0.00023956,2]
[311357753,1705067483183,-500.0,0.00023956,2]
[311357754,1705067483193,-500.0,0.00023956,2]
[311357755,1705067483203,-500.0,0.00023956,2]
[311357756,1705067483212,-500.0,0.00023956,2]
[311357757,1705067483222,-500.0,0.00023956,2]
[311357758,1705067483232,-500.0,0.00023956,2]
[311357759,1705067483241,-500.0,0.00023956,2]
[311357760,1705067483252,-500.0,0.00023956,2]